[Event "44th Chess Olympiad Women 2022"]
[Site "Chennai"]
[Date "2022.08.02"]
[Round "5.4"]
[White "Cosma, Elena-Luminita"]
[Black "Rudzinska, Michalina"]
[Result "1-0"]
[ECO "E06"]
[WhiteElo "2248"]
[BlackElo "2315"]
[Annotator "RC"]
[PlyCount "75"]
[EventDate "2022.07.29"]
[EventType "team-tourn"]
[EventCountry "IND"]
[SourceTitle "playchess.com"]
[Source "ChessBase"]
[SourceQuality "1"]
[WhiteTeam "Romania"]
[BlackTeam "Poland"]
[WhiteTeamCountry "ROU"]
[BlackTeamCountry "POL"]
[TimeControl "40/5400+30:1800+30"]

1. Nf3 {[%emt 0:00:03]} Nf6 {[%emt 0:00:11]} 2. g3 {[%emt 0:00:11]} e6 {[%emt 0:00:18]} 3. Bg2 {[%emt 0:00:06]} d5 {[%emt 0:00:14]} 4. O-O {[%emt 0:01:06]} Be7 {[%emt 0:01:45]} 5. c4 {[%emt 0:01:29]} O-O {[%emt 0:00:00]} 6. d4 {[%emt 0:00:35]} c6 {[%emt 0:00:00]} 7. Nc3 {[%emt 0:00:23]} b6 {[%emt 0:00:44]} 8. Ne5 {[%emt 0:01:38]} Nfd7 {[%emt 0:02:28]} 9. cxd5 {[%emt 0:10:11]} Nxe5 {[%emt 0:14:28]} 10. dxe5 {[%emt 0:01:57]} exd5 {[%emt 0:00:55]} 11. Nxd5 {[%emt 0:03:16]} Ba6 {[%emt 0:11:11]} 12. Nf4 {[%emt 0:10:16]} g5 {[%emt 0:05:33]} 13. Nd3 {[%emt 0:00:27]} Qc7 {[%emt 0:00:26]} 14. Bd2 {[%emt 0:06:48]} Nd7 {[%emt 0:04:27]} 15. Qc1 {[%emt 0:06:25]} Nxe5 {[%emt 0:07:20]} 16. Bxg5 {[%emt 0:03:03]} Nxd3 {[%emt 0:02:36]} 17. exd3 {[%emt 0:00:20]} Bxd3 {[%emt 0:01:07]} 18. Re1 {[%emt 0:11:04]} Bxg5 {[%emt 0:02:28]} 19. Qxg5+ {[%emt 0:00:06]} Bg6 {[%emt 0:00:11]} 20. Rac1 {[%emt 0:05:26]} Qd8 {[%emt 0:07:15]} 21. Qf4 {[%emt 0:00:43]} Rc8 {[%emt 0:03:03]} 22. Bxc6 {[%emt 0:01:25]} Qc7 {[%emt 0:01:03]} 23. Qxc7 {[%emt 0:06:54]} Rxc7 {[%emt 0:00:08]} 24. Bf3 {[%emt 0:00:15]} Rd7 {[%emt 0:04:54]} 25. Rcd1 {[%emt 0:00:45]} Rc7 {[%emt 0:00:21]} 26. Rd2 {[%emt 0:00:23]} Rfc8 {[%emt 0:01:20]} 27. h4 {[%emt 0:00:27]} Rc2 {[%emt 0:04:08]} 28. Ree2 {[%emt 0:05:15]} Rc1+ {[%emt 0:02:32]} 29. Kg2 {[%emt 0:04:58]} Bf5 {[%emt 0:08:46]} 30. Bd5 {[%emt 0:07:30]} R8c7 {[%emt 0:00:46]} 31. f3 {[%emt 0:01:13]} Bc8 {[%emt 0:01:35]} 32. g4 {[%emt 0:01:44]} Ba6 {[%emt 0:00:30]} 33. Re8+ {[%emt 0:02:20]} Kg7 {[%emt 0:00:04]} 34. Be4 {[%emt 0:01:47]} Re1 {[%emt 0:02:11]} 35. Kf2 {[%emt 0:02:04]} Rf1+ {[%emt 0:02:36]} 36. Kg3 {[%emt 0:00:16]} Bb5 {[%emt 0:05:27]} 37. Re5 {[%emt 0:00:58]} Bd7 {[%emt 0:04:23]} 38. Re7 {[%emt 0:01:20]} 1-0

[Event "44th Chess Olympiad Women 2022"]
[Site "Chennai"]
[Date "2022.08.02"]
[Round "5.5"]
[White "Abdumalik, Zhansaya"]
[Black "Ordaz Valdes, Lisandra Teresa"]
[Result "1-0"]
[ECO "C42"]
[WhiteElo "2495"]
[BlackElo "2367"]
[Annotator "RC"]
[PlyCount "121"]
[EventDate "2022.07.29"]
[EventType "team-tourn"]
[EventCountry "IND"]
[SourceTitle "playchess.com"]
[Source "ChessBase"]
[SourceQuality "1"]
[WhiteTeam "Kazakhstan"]
[BlackTeam "Cuba"]
[WhiteTeamCountry "KAZ"]
[BlackTeamCountry "CUB"]
[TimeControl "40/5400+30:1800+30"]

1. e4 {[%emt 0:00:03]} e5 {[%emt 0:00:12]} 2. Nf3 {[%emt 0:00:04]} Nf6 {[%emt 0:00:12]} 3. Nxe5 {[%emt 0:00:59]} Nxe4 {[%emt 0:00:25]} 4. Qe2 {[%emt 0:04:42]} Qe7 {[%emt 0:00:36]} 5. Qxe4 {[%emt 0:01:11]} d6 {[%emt 0:00:22]} 6. d4 {[%emt 0:03:07]} dxe5 {[%emt 0:00:30]} 7. dxe5 {[%emt 0:05:37]} Nc6 {[%emt 0:00:55]} 8. Bb5 {[%emt 0:03:53]} Bd7 {[%emt 0:02:02]} 9. O-O {[%emt 0:03:00]} O-O-O {[%emt 0:01:01]} 10. Nc3 {[%emt 0:11:23]} Qb4 {[%emt 0:07:42]} 11. Re1 {[%emt 0:06:23]} Bc5 {[%emt 0:19:21]} 12. a3 {[%emt 0:08:22]} Qxe4 {[%emt 0:12:38]} 13. Rxe4 {[%emt 0:04:29]} Bf5 {[%emt 0:15:29]} 14. Bxc6 {[%emt 0:06:37]} bxc6 {[%emt 0:00:10]} 15. Rc4 {[%emt 0:05:24]} Bd4 {[%emt 0:03:32]} 16. Bg5 {[%emt 0:03:18]} Rd7 {[%emt 0:15:52]} 17. Rxc6 {[%emt 0:03:59]} Bxe5 {[%emt 0:04:45]} 18. Rc5 {[%emt 0:07:38]} Bxc3 {[%emt 0:04:26]} 19. Rxc3 {[%emt 0:00:41]} f6 {[%emt 0:02:32]} 20. Be3 {[%emt 0:01:06]} Rhd8 {[%emt 0:00:16]} 21. Kf1 {[%emt 0:01:05]} Kb7 {[%emt 0:00:50]} 22. Ke2 {[%emt 0:00:22]} a6 {[%emt 0:01:53]} 23. a4 {[%emt 0:01:08]} Bg4+ {[%emt 0:01:14]} 24. f3 {[%emt 0:00:06]} Be6 {[%emt 0:01:24]} 25. a5 {[%emt 0:01:43]} Bd5 {[%emt 0:00:23]} 26. Rc5 {[%emt 0:01:27]} Bf7 {[%emt 0:02:06]} 27. Ra4 {[%emt 0:05:33]} Rd5 {[%emt 0:00:45]} 28. Rc3 {[%emt 0:01:59]} Be8 {[%emt 0:01:39]} 29. Rg4 {[%emt 0:02:39]} Bb5+ {[%emt 0:00:44]} 30. Kf2 {[%emt 0:00:24]} R8d7 {[%emt 0:00:25]} 31. Rb3 {[%emt 0:00:48]} f5 {[%emt 0:00:54]} 32. Rh4 {[%emt 0:01:04]} Rd2+ {[%emt 0:00:41]} 33. Bxd2 {[%emt 0:01:23]} Rxd2+ {[%emt 0:00:01]} 34. Ke3 {[%emt 0:01:09]} Rxc2 {[%emt 0:00:10]} 35. Rxh7 {[%emt 0:00:12]} Rxg2 {[%emt 0:00:16]} 36. Kf4 {[%emt 0:00:21]} c5 {[%emt 0:00:41]} 37. Re3 {[%emt 0:01:15]} Kc6 {[%emt 0:00:23]} 38. b3 {[%emt 0:00:57]} Kd5 {[%emt 0:00:21]} 39. h4 {[%emt 0:00:42]} Rh2 {[%emt 0:01:20]} 40. Rh8 {[%emt 0:01:03]} Bd7 {[%emt 0:00:15]} 41. Rd8 {[%emt 0:31:11]} Kc6 {[%emt 0:01:54]} 42. Re7 {[%emt 0:00:00]} Rxh4+ {[%emt 0:01:20]} 43. Ke5 {[%emt 0:00:00]} Rd4 {[%emt 0:00:08]} 44. Rxg7 {[%emt 0:00:00]} Rd5+ {[%emt 0:01:08]} 45. Kf4 {[%emt 0:00:00]} Rd4+ {[%emt 0:08:02]} 46. Kg5 {[%emt 0:00:00]} Be6 {[%emt 0:04:11]} 47. Rb8 {[%emt 0:00:00]} Rb4 {[%emt 0:06:44]} 48. Rxb4 {[%emt 0:00:00]} cxb4 {[%emt 0:00:04]} 49. Rg6 {[%emt 0:00:00]} Kd7 {[%emt 0:00:05]} 50. Rxe6 {[%emt 0:00:00]} Kxe6 {[%emt 0:00:01]} 51. f4 {[%emt 0:00:00]} Kd5 {[%emt 0:00:06]} 52. Kxf5 {[%emt 0:00:00]} Kd4 {[%emt 0:00:00]} 53. Ke6 {[%emt 0:00:00]} Kc3 {[%emt 0:00:05]} 54. f5 {[%emt 0:00:00]} Kxb3 {[%emt 0:00:16]} 55. f6 {[%emt 0:00:00]} Ka2 {[%emt 0:00:29]} 56. f7 {[%emt 0:00:00]} b3 {[%emt 0:00:43]} 57. f8=Q {[%emt 0:00:00]} b2 {[%emt 0:00:04]} 58. Qf2 {[%emt 0:00:00]} Ka1 {[%emt 0:00:04]} 59. Qd4 {[%emt 0:00:00]} Ka2 {[%emt 0:00:07]} 60. Qa4+ {[%emt 0:00:00]} Kb1 {[%emt 0:00:11]} 61. Kd5 {[%emt 0:00:00]} 1-0

[Event "44th Chess Olympiad Women 2022"]
[Site "Chennai"]
[Date "2022.08.02"]
[Round "5.5"]
[White "Miranda Llanes, Yerisbel"]
[Black "Assaubayeva, Bibisara"]
[Result "1/2-1/2"]
[ECO "D23"]
[WhiteElo "2347"]
[BlackElo "2436"]
[Annotator "RC"]
[PlyCount "90"]
[EventDate "2022.07.29"]
[EventType "team-tourn"]
[EventCountry "IND"]
[SourceTitle "playchess.com"]
[Source "ChessBase"]
[SourceQuality "1"]
[WhiteTeam "Cuba"]
[BlackTeam "Kazakhstan"]
[WhiteTeamCountry "CUB"]
[BlackTeamCountry "KAZ"]
[TimeControl "40/5400+30:1800+30"]

1. d4 {[%emt 0:00:12]} d5 {[%emt 0:00:04]} 2. c4 {[%emt 0:00:08]} c6 {[%emt 0:00:03]} 3. Nf3 {[%emt 0:00:12]} Nf6 {[%emt 0:00:06]} 4. Qb3 {[%emt 0:00:09]} dxc4 {[%emt 0:00:06]} 5. Qxc4 {[%emt 0:00:03]} Bf5 {[%emt 0:00:09]} 6. g3 {[%emt 0:02:14]} e6 {[%emt 0:00:16]} 7. Bg2 {[%emt 0:00:19]} Nbd7 {[%emt 0:00:27]} 8. O-O {[%emt 0:00:31]} Be7 {[%emt 0:00:15]} 9. Rd1 {[%emt 0:02:26]} O-O {[%emt 0:01:56]} 10. e3 {[%emt 0:00:10]} Rc8 {[%emt 0:04:39]} 11. Qe2 {[%emt 0:02:40]} h6 {[%emt 0:03:17]} 12. Nc3 {[%emt 0:00:38]} Ne4 {[%emt 0:08:44]} 13. Ne1 {[%emt 0:00:43]} Ndf6 {[%emt 0:02:00]} 14. f3 {[%emt 0:06:47]} Nxc3 {[%emt 0:00:21]} 15. bxc3 {[%emt 0:00:01]} c5 {[%emt 0:09:49]} 16. e4 {[%emt 0:00:58]} Bh7 {[%emt 0:00:06]} 17. Be3 {[%emt 0:06:25]} Qa5 {[%emt 0:03:02]} 18. Rab1 {[%emt 0:04:52]} b6 {[%emt 0:02:14]} 19. Bd2 {[%emt 0:08:12]} Rfd8 {[%emt 0:03:46]} 20. Kf1 {[%emt 0:12:07]} Bf8 {[%emt 0:05:05]} 21. Ra1 {[%emt 0:17:28]} Qa3 {[%emt 0:05:23]} 22. Rdc1 {[%emt 0:00:46]} Nd7 {[%emt 0:07:40]} 23. Qb5 {[%emt 0:05:42]} cxd4 {[%emt 0:07:13]} 24. cxd4 {[%emt 0:00:47]} Nb8 {[%emt 0:04:13]} 25. Rxc8 {[%emt 0:08:04]} Rxc8 {[%emt 0:00:03]} 26. Qb3 {[%emt 0:02:17]} Qa6+ {[%emt 0:08:25]} 27. Kf2 {[%emt 0:00:38]} Nc6 {[%emt 0:00:21]} 28. Bf1 {[%emt 0:01:07]} Qb7 {[%emt 0:00:44]} 29. Bc3 {[%emt 0:01:37]} Rd8 {[%emt 0:02:17]} 30. Nc2 {[%emt 0:04:42]} Qc7 {[%emt 0:02:31]} 31. Rd1 {[%emt 0:02:01]} Na5 {[%emt 0:04:21]} 32. Bxa5 {[%emt 0:01:33]} bxa5 {[%emt 0:00:02]} 33. Ne3 {[%emt 0:00:18]} h5 {[%emt 0:05:45]} 34. d5 {[%emt 0:03:07]} e5 {[%emt 0:06:06]} 35. Nc4 {[%emt 0:03:40]} Bc5+ {[%emt 0:03:00]} 36. Kg2 {[%emt 0:00:12]} Bd4 {[%emt 0:00:19]} 37. Rb1 {[%emt 0:01:33]} f5 {[%emt 0:01:43]} 38. Bd3 {[%emt 0:01:43]} fxe4 {[%emt 0:00:25]} 39. fxe4 {[%emt 0:01:28]} Kh8 {[%emt 0:00:49]} 40. Qb7 {[%emt 0:00:52]} Bxe4+ {[%emt 0:02:00]} 41. Bxe4 {[%emt 0:30:12]} Qxc4 {[%emt 0:30:05]} 42. Kh3 {[%emt 0:00:00]} Qe2 {[%emt 0:00:00]} 43. Qd7 {[%emt 0:00:00]} Qxe4 {[%emt 0:00:00]} 44. Qxd8+ {[%emt 0:00:00]} Kh7 {[%emt 0:00:00]} 45. Qg5 {[%emt 0:00:00]} Qxb1 {[%emt 0:00:00]} 1/2-1/2

[Event "44th Chess Olympiad Women 2022"]
[Site "Chennai"]
[Date "2022.08.02"]
[Round "5.5"]
[White "Forgas Moreno, Yaniela"]
[Black "Nakhbayeva, Guliskhan"]
[Result "0-1"]
[ECO "A03"]
[WhiteElo "2343"]
[BlackElo "2329"]
[Annotator "RC"]
[PlyCount "90"]
[EventDate "2022.07.29"]
[EventType "team-tourn"]
[EventCountry "IND"]
[SourceTitle "playchess.com"]
[Source "ChessBase"]
[SourceQuality "1"]
[WhiteTeam "Cuba"]
[BlackTeam "Kazakhstan"]
[WhiteTeamCountry "CUB"]
[BlackTeamCountry "KAZ"]
[TimeControl "40/5400+30:1800+30"]

1. d3 {[%emt 0:00:05]} d5 {[%emt 0:00:14]} 2. f4 {[%emt 0:00:10]} Nf6 {[%emt 0:00:10]} 3. Nf3 {[%emt 0:00:11]} g6 {[%emt 0:00:10]} 4. g3 {[%emt 0:00:19]} Bg7 {[%emt 0:00:07]} 5. Bg2 {[%emt 0:00:16]} O-O {[%emt 0:00:06]} 6. O-O {[%emt 0:00:20]} c5 {[%emt 0:00:06]} 7. c3 {[%emt 0:00:17]} Nc6 {[%emt 0:00:28]} 8. Na3 {[%emt 0:00:32]} Rb8 {[%emt 0:00:13]} 9. Nc2 {[%emt 0:07:36]} b6 {[%emt 0:00:58]} 10. Qe1 {[%emt 0:05:12]} d4 {[%emt 0:01:06]} 11. c4 {[%emt 0:03:17]} Bb7 {[%emt 0:01:57]} 12. b4 {[%emt 0:02:00]} b5 {[%emt 0:14:06]} 13. cxb5 {[%emt 0:21:51]} Nxb4 {[%emt 0:00:39]} 14. Nxb4 {[%emt 0:05:11]} cxb4 {[%emt 0:00:05]} 15. Qxb4 {[%emt 0:00:20]} Nd5 {[%emt 0:00:37]} 16. Qb2 {[%emt 0:00:17]} Ne3 {[%emt 0:10:17]} 17. Bxe3 {[%emt 0:03:46]} Bxf3 {[%emt 0:04:06]} 18. Bf2 {[%emt 0:05:31]} Bxg2 {[%emt 0:00:06]} 19. Kxg2 {[%emt 0:00:08]} Qd5+ {[%emt 0:00:08]} 20. Kg1 {[%emt 0:00:18]} Rxb5 {[%emt 0:00:29]} 21. Qc2 {[%emt 0:05:45]} h5 {[%emt 0:17:33]} 22. Rfc1 {[%emt 0:05:28]} Rfb8 {[%emt 0:01:12]} 23. Rab1 {[%emt 0:03:19]} Bf6 {[%emt 0:10:43]} 24. Rxb5 {[%emt 0:01:37]} Qxb5 {[%emt 0:02:47]} 25. a4 {[%emt 0:02:16]} Qb4 {[%emt 0:08:18]} 26. Qa2 {[%emt 0:04:13]} Qd6 {[%emt 0:04:40]} 27. Rc4 {[%emt 0:08:52]} h4 {[%emt 0:02:56]} 28. Qc2 {[%emt 0:06:57]} h3 {[%emt 0:05:37]} 29. Rc8+ {[%emt 0:01:14]} Kg7 {[%emt 0:00:01]} 30. Rxb8 {[%emt 0:00:16]} Qxb8 {[%emt 0:00:04]} 31. e4 {[%emt 0:00:09]} dxe3 {[%emt 0:00:39]} 32. Bxe3 {[%emt 0:00:05]} Qb4 {[%emt 0:01:39]} 33. Kf2 {[%emt 0:01:54]} a5 {[%emt 0:00:15]} 34. Qd1 {[%emt 0:04:38]} Qb2+ {[%emt 0:01:44]} 35. Qd2 {[%emt 0:01:36]} Qa1 {[%emt 0:00:20]} 36. Bb6 {[%emt 0:01:18]} Bc3 {[%emt 0:06:45]} 37. Qc2 {[%emt 0:00:58]} Qe1+ {[%emt 0:02:34]} 38. Kf3 {[%emt 0:00:05]} Qf1+ {[%emt 0:01:06]} 39. Ke3 {[%emt 0:01:03]} Qe1+ {[%emt 0:02:45]} 40. Kf3 {[%emt 0:00:18]} Bd2 {[%emt 0:01:26]} 41. Bf2 {[%emt 0:03:29]} Qh1+ {[%emt 0:06:04]} 42. Kg4 {[%emt 0:07:56]} f5+ {[%emt 0:04:16]} 43. Kh4 {[%emt 0:00:08]} Qf3 {[%emt 0:01:09]} 44. Bd4+ {[%emt 0:00:15]} Kh6 {[%emt 0:00:25]} 45. Kxh3 {[%emt 0:00:26]} Qf1+ {[%emt 0:00:09]} 0-1

[Event "44th Chess Olympiad Women 2022"]
[Site "Chennai"]
[Date "2022.08.02"]
[Round "5.5"]
[White "Balabayeva, Xeniya"]
[Black "Arribas Robaina, Maritza"]
[Result "1/2-1/2"]
[ECO "C02"]
[WhiteElo "2198"]
[BlackElo "2239"]
[Annotator "NA RC"]
[PlyCount "89"]
[EventDate "2022.07.29"]
[EventType "team-tourn"]
[EventCountry "IND"]
[SourceTitle "playchess.com"]
[Source "ChessBase"]
[SourceQuality "1"]
[WhiteTeam "Kazakhstan"]
[BlackTeam "Cuba"]
[WhiteTeamCountry "KAZ"]
[BlackTeamCountry "CUB"]
[TimeControl "40/5400+30:1800+30"]

1. e4 {[%emt 0:00:03]} e6 {[%emt 0:00:05]} 2. d4 {[%emt 0:00:09]} d5 {[%emt 0:00:05]} 3. e5 {[%emt 0:00:11]} c5 {[%emt 0:00:22]} 4. c3 {[%emt 0:00:14]} Nc6 {[%emt 0:00:52]} 5. Nf3 {[%emt 0:00:57]} Bd7 {[%emt 0:00:30]} 6. Bd3 {[%emt 0:04:17]} Qb6 {[%emt 0:01:28]} 7. O-O {[%emt 0:00:36]} cxd4 {[%emt 0:01:39]} 8. Re1 {[%emt 0:03:35]} Rc8 {[%emt 0:04:18]} 9. a3 {[%emt 0:35:08]} Nge7 {[%emt 0:07:35]} 10. h4 {[%emt 0:00:46]} h6 {[%emt 0:03:27]} 11. h5 {[%emt 0:01:07]} a6 {[%emt 0:06:47]} 12. b4 {[%emt 0:13:02]} dxc3 {[%emt 0:06:00]} 13. Nxc3 {[%emt 0:00:35]} Nd4 {[%emt 0:05:26]} 14. Bb2 {[%emt 0:07:03]} Nxf3+ {[%emt 0:03:26]} 15. Qxf3 {[%emt 0:00:08]} Nc6 {[%emt 0:03:03]} 16. Qg3 {[%emt 0:03:37]} Na5 {[%emt 0:05:18]} 17. Ne2 {[%emt 0:06:58]} Nc4 {[%emt 0:03:31]} 18. Bd4 {[%emt 0:01:38]} Qd8 {[%emt 0:00:41]} 19. f4 {[%emt 0:06:38]} Bc6 {[%emt 0:03:24]} 20. Bxc4 {[%emt 0:05:08]} dxc4 {[%emt 0:00:17]} 21. Rad1 {[%emt 0:00:15]} Qc7 {[%emt 0:18:03]} 22. Nc3 {[%emt 0:01:47]} b5 {[%emt 0:07:06]} 23. Qg4 {[%emt 0:03:34]} Rd8 {[%emt 0:08:06]} 24. f5 {[%emt 0:01:57]} Qc8 {[%emt 0:00:16]} 25. Qg3 {[%emt 0:01:08]} Qb7 {[%emt 0:02:52]} 26. fxe6 {[%emt 0:02:17]} fxe6 {[%emt 0:00:46]} 27. Rf1 {[%emt 0:00:07]} Be4 {[%emt 0:01:15]} 28. Nxe4 {[%emt 0:00:25]} Qxe4 {[%emt 0:00:00]} 29. Rf4 {[%emt 0:00:06]} Qc2 {[%emt 0:00:21]} 30. Qg4 {[%emt 0:00:16]} Be7 {[%emt 0:01:21]} 31. Rff1 {[%emt 0:00:31]} Rf8 {[%emt 0:00:21]} 32. Rxf8+ {[%emt 0:00:43]} Kxf8 {[%emt 0:00:13]} 33. Rf1+ {[%emt 0:00:18]} Ke8 {[%emt 0:00:41]} 34. Bb6 {[%emt 0:00:26]} Rd2 {[%emt 0:00:36]} 35. Bc5 {[%emt 0:00:27]} Bxc5+ {[%emt 0:03:46]} 36. bxc5 {[%emt 0:00:01]} Kd7 {[%emt 0:00:11]} 37. Rf7+ {[%emt 0:01:58]} Kc6 {[%emt 0:00:04]} 38. Qxe6+ {[%emt 0:00:10]} Kxc5 {[%emt 0:00:01]} 39. Qe7+ {[%emt 0:01:09]} Kd4 {[%emt 0:00:33]} 40. Qd6+ {[%emt 0:00:13]} Kc3 {[%emt 0:00:48]} 41. Qb4+ {[%emt 0:30:47]} Kd3 {[%emt 0:30:44]} 42. Qd6+ {[%emt 0:00:00]} Kc3 {[%emt 0:00:00]} 43. Qb4+ {[%emt 0:00:00]} Kd3 {[%emt 0:00:00]} 44. Qd6+ {[%emt 0:00:00]} Kc3 {[%emt 0:00:00]} 45. Qb4+ {[%emt 0:00:00]} 1/2-1/2

[Event "44th Chess Olympiad Women 2022"]
[Site "Chennai"]
[Date "2022.08.02"]
[Round "5.6"]
[White "Paehtz, Elisabeth"]
[Black "Enkhtuul, Altan-Ulzii"]
[Result "1/2-1/2"]
[ECO "B07"]
[WhiteElo "2484"]
[BlackElo "2267"]
[Annotator "RC"]
[PlyCount "108"]
[EventDate "2022.07.29"]
[EventType "team-tourn"]
[EventCountry "IND"]
[SourceTitle "playchess.com"]
[Source "ChessBase"]
[SourceQuality "1"]
[WhiteTeam "Germany"]
[BlackTeam "Mongolia"]
[WhiteTeamCountry "GER"]
[BlackTeamCountry "MGL"]
[TimeControl "40/5400+30:1800+30"]

1. e4 {[%emt 0:00:02]} d6 {[%emt 0:00:08]} 2. d4 {[%emt 0:00:19]} Nf6 {[%emt 0:00:04]} 3. Bd3 {[%emt 0:01:43]} g6 {[%emt 0:00:21]} 4. Nf3 {[%emt 0:00:38]} c6 {[%emt 0:00:59]} 5. O-O {[%emt 0:01:17]} Bg7 {[%emt 0:00:26]} 6. c3 {[%emt 0:00:37]} O-O {[%emt 0:00:10]} 7. Re1 {[%emt 0:03:13]} Bg4 {[%emt 0:05:59]} 8. Nbd2 {[%emt 0:05:44]} e5 {[%emt 0:00:39]} 9. h3 {[%emt 0:00:39]} Bxf3 {[%emt 0:00:22]} 10. Nxf3 {[%emt 0:00:05]} Nbd7 {[%emt 0:00:23]} 11. Bg5 {[%emt 0:01:17]} Qc7 {[%emt 0:03:52]} 12. Qd2 {[%emt 0:01:56]} Rfe8 {[%emt 0:01:37]} 13. Rad1 {[%emt 0:06:43]} Nf8 {[%emt 0:29:57]} 14. Qc2 {[%emt 0:07:07]} Ne6 {[%emt 0:02:26]} 15. Be3 {[%emt 0:00:10]} Nh5 {[%emt 0:02:06]} 16. Bf1 {[%emt 0:00:21]} b6 {[%emt 0:09:58]} 17. Rd2 {[%emt 0:04:41]} Rad8 {[%emt 0:02:36]} 18. Red1 {[%emt 0:03:42]} Nf6 {[%emt 0:02:44]} 19. dxe5 {[%emt 0:09:39]} dxe5 {[%emt 0:00:04]} 20. Rxd8 {[%emt 0:05:26]} Rxd8 {[%emt 0:00:04]} 21. Rxd8+ {[%emt 0:00:04]} Nxd8 {[%emt 0:00:14]} 22. a4 {[%emt 0:00:28]} Nb7 {[%emt 0:01:19]} 23. Qd3 {[%emt 0:01:51]} Bf8 {[%emt 0:03:51]} 24. Nd2 {[%emt 0:00:17]} Nc5 {[%emt 0:01:09]} 25. Qc2 {[%emt 0:01:04]} Nb7 {[%emt 0:07:01]} 26. b4 {[%emt 0:06:54]} c5 {[%emt 0:01:38]} 27. b5 {[%emt 0:00:57]} Nd6 {[%emt 0:01:08]} 28. f3 {[%emt 0:01:12]} Nh5 {[%emt 0:05:47]} 29. Bc4 {[%emt 0:03:02]} Kg7 {[%emt 0:01:32]} 30. Qd3 {[%emt 0:03:38]} Nf4 {[%emt 0:05:58]} 31. Bxf4 {[%emt 0:04:55]} exf4 {[%emt 0:00:01]} 32. Qd5 {[%emt 0:00:04]} Qe7 {[%emt 0:00:56]} 33. Kf1 {[%emt 0:01:48]} h5 {[%emt 0:02:19]} 34. Bd3 {[%emt 0:01:09]} Qe6 {[%emt 0:01:17]} 35. Qxe6 {[%emt 0:09:10]} fxe6 {[%emt 0:00:05]} 36. Ke2 {[%emt 0:00:28]} Kf6 {[%emt 0:02:02]} 37. e5+ {[%emt 0:00:46]} Kxe5 {[%emt 0:00:06]} 38. Bxg6 {[%emt 0:00:05]} h4 {[%emt 0:00:12]} 39. Kd3 {[%emt 0:02:37]} Bg7 {[%emt 0:02:27]} 40. Be4 {[%emt 0:00:40]} Bf6 {[%emt 0:00:35]} 41. c4 {[%emt 0:30:21]} Nf7 {[%emt 0:31:54]} 42. Bg6 {[%emt 0:00:06]} Nd6 {[%emt 0:03:08]} 43. Nb3 {[%emt 0:00:42]} Nf5 {[%emt 0:00:00]} 44. Bxf5 {[%emt 0:00:00]} exf5 {[%emt 0:00:00]} 45. a5 {[%emt 0:00:00]} Kd6 {[%emt 0:00:00]} 46. a6 {[%emt 0:00:00]} Bd8 {[%emt 0:00:00]} 47. Kc3 {[%emt 0:00:00]} Bf6+ {[%emt 0:00:00]} 48. Kc2 {[%emt 0:00:00]} Kc7 {[%emt 0:00:00]} 49. Kd2 {[%emt 0:00:00]} Be5 {[%emt 0:00:00]} 50. Nc1 {[%emt 0:00:00]} Kd6 {[%emt 0:00:00]} 51. Nd3 {[%emt 0:00:00]} Ke6 {[%emt 0:00:00]} 52. Nc1 {[%emt 0:00:00]} Kd6 {[%emt 0:00:00]} 53. Ne2 {[%emt 0:00:00]} Ke6 {[%emt 0:00:00]} 54. Kd3 {[%emt 0:00:00]} Kd6 {[%emt 0:00:00]} 1/2-1/2

[Event "44th Chess Olympiad Women 2022"]
[Site "Chennai"]
[Date "2022.08.02"]
[Round "5.6"]
[White "Wagner, Dinara"]
[Black "Mungunzul, Bat-Erdene"]
[Result "1-0"]
[ECO "D11"]
[WhiteElo "2341"]
[BlackElo "2163"]
[Annotator "RC"]
[PlyCount "107"]
[EventDate "2022.07.29"]
[EventType "team-tourn"]
[EventCountry "IND"]
[SourceTitle "playchess.com"]
[Source "ChessBase"]
[SourceQuality "1"]
[WhiteTeam "Germany"]
[BlackTeam "Mongolia"]
[WhiteTeamCountry "GER"]
[BlackTeamCountry "MGL"]
[TimeControl "40/5400+30:1800+30"]

1. d4 {[%emt 0:00:02]} d5 {[%emt 0:00:08]} 2. c4 {[%emt 0:00:07]} c6 {[%emt 0:00:06]} 3. Nf3 {[%emt 0:00:04]} Nf6 {[%emt 0:00:18]} 4. e3 {[%emt 0:00:06]} a6 {[%emt 0:00:28]} 5. Nbd2 {[%emt 0:01:26]} Bf5 {[%emt 0:02:12]} 6. Nh4 {[%emt 0:01:22]} Be4 {[%emt 0:06:13]} 7. Qb3 {[%emt 0:01:08]} Ra7 {[%emt 0:00:58]} 8. Nxe4 {[%emt 0:03:35]} Nxe4 {[%emt 0:00:21]} 9. Nf3 {[%emt 0:05:36]} e6 {[%emt 0:01:51]} 10. Bd3 {[%emt 0:01:35]} Qa5+ {[%emt 0:10:45]} 11. Nd2 {[%emt 0:02:28]} f5 {[%emt 0:11:19]} 12. f3 {[%emt 0:05:12]} Nf6 {[%emt 0:00:37]} 13. O-O {[%emt 0:02:40]} Bb4 {[%emt 0:03:33]} 14. Qc2 {[%emt 0:04:49]} O-O {[%emt 0:04:44]} 15. e4 {[%emt 0:12:09]} dxe4 {[%emt 0:17:33]} 16. fxe4 {[%emt 0:01:39]} Bxd2 {[%emt 0:02:41]} 17. Bxd2 {[%emt 0:01:42]} Qb6 {[%emt 0:00:39]} 18. Bc3 {[%emt 0:14:37]} fxe4 {[%emt 0:01:06]} 19. Bxe4 {[%emt 0:00:06]} Nbd7 {[%emt 0:00:11]} 20. Qe2 {[%emt 0:04:46]} Raa8 {[%emt 0:02:17]} 21. Bc2 {[%emt 0:03:49]} Rae8 {[%emt 0:02:44]} 22. Kh1 {[%emt 0:02:04]} Kh8 {[%emt 0:05:50]} 23. Rae1 {[%emt 0:00:53]} Qc7 {[%emt 0:00:51]} 24. Qd3 {[%emt 0:02:23]} Rf7 {[%emt 0:11:29]} 25. Qh3 {[%emt 0:09:11]} Nf8 {[%emt 0:00:59]} 26. Rf3 {[%emt 0:02:29]} Ng8 {[%emt 0:02:24]} 27. Rfe3 {[%emt 0:04:16]} Qf4 {[%emt 0:01:38]} 28. Bd3 {[%emt 0:00:44]} Nh6 {[%emt 0:00:53]} 29. Rf3 {[%emt 0:02:41]} Qg5 {[%emt 0:00:38]} 30. Rg3 {[%emt 0:04:14]} Qf4 {[%emt 0:00:17]} 31. Rf3 {[%emt 0:00:46]} Qg5 {[%emt 0:00:07]} 32. Rg3 {[%emt 0:03:04]} Qf4 {[%emt 0:00:08]} 33. Qh5 {[%emt 0:00:33]} Ree7 {[%emt 0:03:01]} 34. Bb4 {[%emt 0:01:40]} Qf2 {[%emt 0:00:41]} 35. Qd1 {[%emt 0:01:23]} Re8 {[%emt 0:02:02]} 36. Bc3 {[%emt 0:00:31]} Qf4 {[%emt 0:00:50]} 37. d5 {[%emt 0:01:10]} e5 {[%emt 0:00:35]} 38. Bd2 {[%emt 0:00:56]} Qf6 {[%emt 0:01:26]} 39. Bg5 {[%emt 0:01:01]} Qd6 {[%emt 0:00:48]} 40. Qh5 {[%emt 0:00:29]} Qd7 {[%emt 0:03:39]} 41. Bxh6 {[%emt 0:06:47]} gxh6 {[%emt 0:00:18]} 42. Rxe5 {[%emt 0:08:10]} Ng6 {[%emt 0:05:45]} 43. Rxe8+ {[%emt 0:03:53]} Qxe8 {[%emt 0:00:13]} 44. h3 {[%emt 0:02:49]} Nf4 {[%emt 0:04:10]} 45. Qg4 {[%emt 0:00:41]} h5 {[%emt 0:09:49]} 46. Qg5 {[%emt 0:01:13]} Nxd3 {[%emt 0:00:50]} 47. Rxd3 {[%emt 0:00:48]} Rg7 {[%emt 0:00:31]} 48. Qf4 {[%emt 0:01:31]} Qe2 {[%emt 0:04:44]} 49. Rd2 {[%emt 0:00:36]} Qe1+ {[%emt 0:01:56]} 50. Kh2 {[%emt 0:00:03]} cxd5 {[%emt 0:00:13]} 51. cxd5 {[%emt 0:01:00]} h4 {[%emt 0:00:14]} 52. Rf2 {[%emt 0:01:32]} Qd1 {[%emt 0:01:59]} 53. Qb8+ {[%emt 0:00:18]} Rg8 {[%emt 0:00:14]} 54. Qe5+ {[%emt 0:00:03]} 1-0